Cogmind - Beta 9.2 @@@ ROGUE MODE // 2019.12.03 @ 21:41:54 Player: sideriver81 Result: Self-destructed Performance ------------- Evolutions (8) 4000 Regions Visited (14) 2800 Robots Destroyed (146) 730 Value Destroyed (6950) 6950 Prototype IDs (35) 700 Alien Tech Used (0) 0 Bonus (1321) 1321 TOTAL SCORE: 16501 Bonus ------- High Alert Combat Kills 484 Follower Combat Kills 307 Entered Garrisons 200 Used RIF Installer 500 Aligned with FarCom 300 Friendly Fire -470 Cogmind --------- Core Integrity 476/1450 Matter 286/300 Energy 260/260 System Corruption 16% Temperature Cool (0) Movement Hovering (130) Ox2 Location -2/Research Parts ------- > --- POWER (2) -------- Micro Fission Core Light Quantum Reactor > --- PROPULSION (6) --- Improved Gyrokinetic Inverter > --- UTILITY (11) ----- Advanced Heat Sink Large Storage Unit Spectral Analyzer Advanced Signal Interpreter Advanced Terrain Scan Processor Improved Armor Integrity Analyzer Relay Coupler [NC] (12) Relay Coupler [Sentry] (12) > --- WEAPON (4) ------- Nanosword Nanosword Nanosword > --- INVENTORY (10) --- Light Particle Reactor Advanced Heat Sink Improved Stasis Canceller Advanced Hacking Suite Relay Coupler [Grunt] (30) Advanced Recalibrator Gamma Rifle Improved KE Penetrator Fusion Bomb Launcher Nanosword Peak State ------------ > --- POWER ------------ Light Particle Reactor Light Quantum Reactor > --- PROPULSION ------- Combat Gravmag System Improved Antigrav System Improved Antigrav System Improved Antigrav System Improved Gyrokinetic Inverter Cooled Linear Gravjet > --- UTILITY ---------- Advanced Power Amplifier Advanced Heat Sink Large Storage Unit Advanced Weight Redist. System Spectral Analyzer Advanced Signal Interpreter Long-range Terrain Scanner Advanced Terrain Scan Processor Improved Armor Integrity Analyzer Improved Utility Shielding Relay Coupler [NC] > --- WEAPON ----------- Nanosword Nanosword Nanosword Nanosword > --- INVENTORY -------- Advanced Heat Sink Improved Stasis Canceller Advanced Hacking Suite Relay Coupler [Grunt] Relay Coupler [Sentry] Improved Recalibrator Gamma Rifle Improved KE Penetrator Fusion Bomb Launcher Advanced Remote Datajack [Rating: 148] Favorites ----------- Power Micro Fission Core Engine Light Ion Engine Power Core Micro Fission Core Reactor Particle Reactor Propulsion Improved Titanium Leg Leg Improved Titanium Leg Hover Unit Combat Gravmag System Utility Large Storage Unit Device Improved Heat Sink Storage Large Storage Unit Processor Advanced Targeting Computer Hackware Relay Coupler [NC] Protection Hardened Medium Armor Plating Weapon KE Penetrator Energy Gun Lightning Gun Ballistic Gun KE Penetrator Ballistic Cannon Hypervelocity Gauss Cannon Launcher Grenade Launcher Special Weapon Improved Remote Datajack Slashing Weapon Nanosword Piercing Weapon Force Lance Special Melee Weapon Improved Datajack Build | -11 -10 -10 -10 -9 -8 -7 -7 -7 -6 -5 -5 -4 -3 -2 ------- Run | Scr Mat Min Exi Min Mat Fac Gar Fac Fac Fac Ext Fac Res Res Slots Evolved 16 | . . . . . 4 2 . . 2 2 . 2 2 2 Power 1 | . . . . . . . . . . 1 . . . . Propulsion 4 | . . . . . 2 1 . . . . . . 1 . Utility 9 | . . . . . 1 1 . . 2 1 . 2 1 1 Weapon 2 | . . . . . 1 . . . . . . . . 1 Parts Attached 208 | . 1 . 6 6 14 8 24 5 5 29 19 43 11 37 Power 31 | . . . . . 1 1 4 . . 5 4 4 3 9 Engine 1 | . . . . . . . . . . 1 . . . . Core 22 | . . . . . 1 1 4 . . 4 4 4 2 2 Reactor 8 | . . . . . . . . . . . . . 1 7 Propulsion 49 | . . . . . 4 2 8 1 4 3 3 11 2 11 Treads . | . . . . . . . . . . . . . . . Leg 25 | . . . . . 4 2 8 1 4 3 3 . . . Wheel . | . . . . . . . . . . . . . . . Hover 24 | . . . . . . . . . . . . 11 2 11 Flight . | . . . . . . . . . . . . . . . Utility 59 | . 1 . 4 2 5 1 3 2 1 9 5 14 5 7 Device 32 | . . . 1 2 4 1 2 1 . 6 3 5 1 6 Storage 6 | . 1 . 3 . . . . . . . . 1 1 . Processor 5 | . . . . . . . . 1 . . . 1 3 . Hackware 3 | . . . . . . . . . . 1 . 1 . 1 Protection 13 | . . . . . 1 . 1 . 1 2 2 6 . . Artifact . | . . . . . . . . . . . . . . . Weapon 69 | . . . 2 4 4 4 9 2 . 12 7 14 1 10 Energy Gun 19 | . . . 1 1 3 2 4 1 . . . 6 . 1 Energy Cannon . | . . . . . . . . . . . . . . . Ballistic Gun 21 | . . . 1 . . 2 2 1 . 9 1 3 . 2 Ballistic Cannon 8 | . . . . 2 1 . . . . 1 3 . 1 . Launcher 5 | . . . . 1 . . 2 . . 1 . 1 . . Special Weapon 8 | . . . . . . . . . . . 3 2 . 3 Impact Weapon . | . . . . . . . . . . . . . . . Slashing Weapon 5 | . . . . . . . 1 . . . . . . 4 Piercing Weapon 2 | . . . . . . . . . . . . 2 . . Special Melee Weapon 1 | . . . . . . . . . . 1 . . . . Unidentified Prototypes 11 | . . . . 1 . 2 . . . 1 . . 1 6 Parts Lost 55 | . . . . . . 1 13 . . . 2 18 . 21 Power 4 | . . . . . . . 1 . . . . . . 3 Propulsion 30 | . . . . . . 1 6 . . . 1 10 . 12 Utility 11 | . . . . . . . 2 . . . 1 3 . 5 Weapon 10 | . . . . . . . 4 . . . . 5 . 1 Highest Loss Streak 8 | . . . . . . 1 8 . . . 2 5 . 7 Average Slot Usage (%) 92 | . 91 100 92 98 97 96 83 89 91 98 96 87 93 90 Engine 2 | . 14 14 14 14 1 . . . . 1 . . . . Core 6 | . . . . . 7 7 6 7 6 9 11 10 4 2 Leg 21 | . 28 28 28 28 34 37 24 27 31 28 28 11 . . Hover 5 | . . . . . . . . . . . . 6 28 23 Device 13 | . . . . 13 15 11 14 13 6 14 13 20 16 13 Storage 7 | . 20 28 20 14 9 7 7 7 6 5 5 5 4 4 Processor 5 | . . . . . . . . 1 6 5 5 9 14 19 Hackware 2 | . . . . . . . . . . 4 5 5 5 4 Protection 4 | . . . . . 1 7 7 7 13 7 4 4 4 3 Energy Gun 5 | . 14 14 13 14 26 17 5 7 6 . . 2 1 . Ballistic Gun 8 | . 14 14 13 . . 5 14 15 13 15 11 6 1 . Ballistic Cannon 1 | . . . . 12 . . . . . . 4 1 2 1 Naked Turns . | . . . . . . . . . . . . . . . Heaviest Build 120 | 10 18 18 46 34 43 47 46 46 44 68 68 63 106 120 Greatest Support 128 | 20 20 20 20 20 40 50 50 50 90 96 100 100 109 128 Greatest Overweight (x) 3 | . . . 2 1 1 1 3 1 . . . 3 . 2 Average Overweight (x) . | . . . . 1 . . 1 . . . . . . . Largest Inventory Capacity 18 | . 10 10 18 10 10 10 10 10 10 10 10 10 10 10 Average Capacity 10 | . 7 10 10 10 10 10 10 10 10 10 10 10 10 10 Most Carried 12 | . 6 6 12 10 10 10 10 10 10 10 10 10 10 10 Average Carried 9 | . 5 6 9 9 9 9 9 9 9 9 9 9 9 9 Final Capacity 10 | 6 10 10 10 10 10 10 10 10 10 10 10 10 10 10 Final Carried 10 | 6 6 6 10 10 10 10 10 10 10 10 10 10 10 10 Class Distribution -------------------- 21% | Scavenger-Gunner 14% | Mutant 13% | Skirmisher 12% | Scavenger-Mutant 11% | Scavenger-Scout 10% | Scavenger-Skirmisher 8% | Scavenger-Tank 4% | Scout Dominant Class ---------------- Mutant | -10/Materials Mutant | -10/Mines Mutant | -10/Exiles Mutant | -9/Mines Skirmisher | -8/Materials Skirmisher | -7/Factory Scavenger-Skirmisher | -7/Garrison Scavenger-Skirmisher | -7/Factory Scavenger-Tank | -6/Factory Scavenger-Gunner | -5/Factory Scavenger-Gunner | -5/Extension Scavenger-Mutant | -4/Factory Scout | -3/Research Scavenger-Scout | -2/Research Resources | -11 -10 -10 -10 -9 -8 -7 -7 -7 -6 -5 -5 -4 -3 -2 ----------- Run | Scr Mat Min Exi Min Mat Fac Gar Fac Fac Fac Ext Fac Res Res Matter Collected 4716 | 200 . . . 240 150 104 623 133 . 843 989 897 119 418 Remotely . | . . . . . . . . . . . . . . . Salvage Created 7945 | . . . . 9 417 390 726 284 . 958 1301 1561 154 2145 Parts 352 | . . . . 4 27 14 37 14 . 42 45 76 3 90 Haulers Intercepted 5 | . . . . . . . . 1 . 1 . 1 1 1 Recyclers Shooed 7 | . . . . . . . . . . 2 . 4 1 . Parts Field Recycled . | . . . . . . . . . . . . . . . Retrieved Matter . | . . . . . . . . . . . . . . . Parts Self-Destructed . | . . . . . . . . . . . . . . . Prevented . | . . . . . . . . . . . . . . . Kills | -11 -10 -10 -10 -9 -8 -7 -7 -7 -6 -5 -5 -4 -3 -2 ------- Run | Scr Mat Min Exi Min Mat Fac Gar Fac Fac Fac Ext Fac Res Res Combat Hostiles Destroyed 103 | . . . . 3 6 4 19 2 . 8 12 19 1 29 Melee 18 | . . . . . . . 1 . . . . 8 . 9 Guns 44 | . . . . . 6 2 14 2 . 7 7 5 . 1 Cannons 27 | . . . . . . . . . . . 5 2 1 19 AOE 14 | . . . . 3 . 2 4 . . 1 . 4 . . Classes Destroyed 15 | . . . . 1 4 2 . 2 . 2 2 1 . 1 Worker 4 | . . . . . . . . . . 2 . 1 . 1 Builder 9 | . . . . . . . . 1 . 1 1 3 . 3 Hauler 5 | . . . . . . . . 1 . 1 . 1 1 1 Recycler 10 | . . . . . . 2 . 1 . 2 2 3 . . Operator 2 | . . . . . 1 . . . . . . . . 1 Drone 2 | . . . . . . . . . . . 2 . . . Watcher 10 | . . . . . 2 1 . . . 2 1 1 . 3 Swarmer 14 | . . . . 3 . . 7 . . . . 4 . . Grunt 38 | . . . . . 4 3 11 . . . 7 1 . 12 Brawler 1 | . . . . . . . . . . . . . . 1 Duelist 2 | . . . . . . 1 1 . . . . . . . Sentry 17 | . . . . . 2 . . 2 . 3 2 3 1 4 Hunter 5 | . . . . . . . . . . . . 2 . 3 Programmer 24 | . . . . . . . . . . 5 1 9 . 9 Behemoth 2 | . . . . . . . . . . . 2 . . . Thug 1 | . . . . . . . . . . . 1 . . . Best Kill Streak 11 | . . . . 3 2 3 4 3 . 4 3 5 1 11 Combat Bots Only 10 | . . . . 3 2 3 4 1 . 2 2 5 1 10 Max Kills in Single Turn 3 | . . . . 2 1 2 2 2 . 1 2 3 1 1 Gunslinging . | . . . . . . . . . . . . . . . Exploded 3 | . . . . 2 . 2 2 . . 1 . 3 . . Melee 1 | . . . . . . . 1 . . . . 1 . 1 Uniques/NPCs Destroyed . | . . . . . . . . . . . . . . . Combat | -11 -10 -10 -10 -9 -8 -7 -7 -7 -6 -5 -5 -4 -3 -2 -------- Run | Scr Mat Min Exi Min Mat Fac Gar Fac Fac Fac Ext Fac Res Res Damage Taken 11302 | . 12 . . 32 105 200 1719 123 . 983 1214 2994 54 3866 Core 1861 | . 12 . . . . 17 178 15 . 104 59 502 . 974 Absorbed by Shields . | . . . . . . . . . . . . . . . Core Remaining (%) 88 | 100 . . . 95 100 . . 70 100 . 83 56 100 . Volleys Fired 253 | . . . . 2 16 10 56 6 . 41 62 44 5 11 Largest 3 | . . . . 1 3 3 3 3 . 3 3 3 2 1 Hottest 193 | . . . . 30 193 193 138 136 . 136 127 155 95 75 Shots Fired 683 | . . . . 2 47 30 133 16 . 122 136 114 15 68 Gun 538 | . . . . . 47 30 128 16 . 122 83 95 8 9 Cannon 117 | . . . . . . . . . . . 37 17 6 57 Launcher 9 | . . . . 2 . . 5 . . . . 2 . . Special 19 | . . . . . . . . . . . 16 . 1 2 Kinetic 516 | . . . . . . 6 97 12 . 116 120 94 10 61 Thermal 84 | . . . . . 31 14 29 4 . 6 . . . . Explosive 9 | . . . . 2 . . 5 . . . . 2 . . Electromagnetic 55 | . . . . . 16 10 2 . . . . 18 4 5 Robot Hit Streak 25 | . . . . 2 6 4 8 9 . 10 23 25 8 20 Robot Miss Streak 8 | . . . . . 3 5 8 3 . 4 3 3 2 1 Penetration Max 1 | . . . . . . . . . . 1 1 1 1 . Secondary Targets 5 | . . . . . . . 5 . . . . . . . Max Gunslinging Chain 1 | . . . . . . . 1 . . . . . . . Autonomous 63 | . . . . . . . . . . . . . 6 57 Shots Hit Robots 558 | . . . . 2 23 14 105 13 . 81 90 112 12 106 Core Hits 285 | . . . . 3 17 11 56 14 . 35 35 58 6 50 Critical Hits 50 | . . . . . . . . . . 12 21 13 . 4 Critical Kills 17 | . . . . . . . . . . 4 7 4 . 2 Critical Parts Destroyed 24 | . . . . . . . . . . 8 6 9 . 1 Melee Attacks 154 | . . . . . . . 6 . . 2 . 65 . 81 Impact . | . . . . . . . . . . . . . . . Slashing 87 | . . . . . . . 6 . . . . . . 81 Piercing 65 | . . . . . . . . . . . . 65 . . Sneak Attacks 7 | . . . . . . . 1 . . 2 . 1 . 3 Combat Hostiles 1 | . . . . . . . 1 . . . . . . . Follow-up Attacks 20 | . . . . . . . . . . . . . . 20 Damage Inflicted 19259 | . . . . 193 550 403 1705 266 . 2242 1960 3658 669 7613 Guns 8319 | . . . . . 550 271 1242 266 . 2195 1481 1938 187 189 Cannons 5609 | . . . . . . . . . . . 392 174 482 4561 Explosions 880 | . . . . 193 . 132 236 . . 47 87 185 . . Melee 4451 | . . . . . . . 227 . . . . 1361 . 2863 Ramming . | . . . . . . . . . . . . . . . Kinetic 12290 | . . . . . . 31 968 186 . 2057 1873 1947 588 4640 Thermal 1075 | . . . . . 283 213 274 80 . 138 87 . . . Explosive 661 | . . . . 193 . . 236 . . 47 . 185 . . Electromagnetic 782 | . . . . . 267 159 . . . . . 165 81 110 Impact . | . . . . . . . . . . . . . . . Slashing 3090 | . . . . . . . 227 . . . . . . 2863 Piercing 1361 | . . . . . . . . . . . . 1361 . . Highest Corruption 17 | . . . . . . . . . . 4 4 17 . 16 Average Corruption 5 | . . . . . . . . . . 3 4 7 . 6 Corruption Purged . | . . . . . . . . . . . . . . . Effects 112 | . . . . . . . . . . 20 29 37 . 26 Message Errors 23 | . . . . . . . . . . 7 6 6 . 4 Matter Fused 25 | . . . . . . . . . . 6 6 8 . 5 Heat Flow Errors 12 | . . . . . . . . . . 1 4 4 . 3 Energy Discharges 10 | . . . . . . . . . . 2 4 2 . 2 Parts Rejected 1 | . . . . . . . . . . . 1 . . . Data Loss (minor) 11 | . . . . . . . . . . 1 5 2 . 3 Data Loss (major) 1 | . . . . . . . . . . . . . . 1 Misfires 1 | . . . . . . . . . . . . 1 . . Alerts 1 | . . . . . . . . . . . . . . 1 Misdirections 9 | . . . . . . . . . . . . 8 . 1 Targeting Errors 17 | . . . . . . . . . . 2 3 6 . 6 Weapon Failures 1 | . . . . . . . . . . 1 . . . . Overload Shots . | . . . . . . . . . . . . . . . Overflow Damage 1125 | . . . . 1 . 20 64 . . . . 117 . 923 Projectiles 594 | . . . . . . . . . . . . . . 594 Explosions 26 | . . . . 1 . 20 5 . . . . . . . Melee 505 | . . . . . . . 59 . . . . 117 . 329 Knockbacks 22 | . . . . . . . . . . . 2 1 . 19 Impact . | . . . . . . . . . . . . . . . Kinetic 22 | . . . . . . . . . . . 2 1 . 19 Secondary . | . . . . . . . . . . . . . . . Self-Inflicted Damage 121 | . . . . . . 63 . . . . 58 . . . Shots 2 | . . . . . . 1 . . . . 1 . . . Rammed . | . . . . . . . . . . . . . . . Targets Rammed . | . . . . . . . . . . . . . . . Kicked . | . . . . . . . . . . . . . . . Crushed . | . . . . . . . . . . . . . . . Highest Temperature 530 | . . . . . 126 161 61 68 . 171 265 530 69 243 Average Temperature 69 | . . . . . 36 62 21 29 . 23 79 123 9 67 Received Heat Transfer 1611 | . 6 . . . 54 54 783 36 . 72 249 132 18 207 Effects 7 | . . . . . . . . . . . . 7 . . Shutdowns 2 | . . . . . . . . . . . . 2 . . Energy Bleed 1 | . . . . . . . . . . . . 1 . . Interference 4 | . . . . . . . . . . . . 4 . . Siege Activations . | . . . . . . . . . . . . . . . Robots Corrupted . | . . . . . . . . . . . . . . . Combat Hostiles . | . . . . . . . . . . . . . . . Parts Fried 2 | . . . . . . . . . . . . 2 . . Impact Corruptions . | . . . . . . . . . . . . . . . Robots Melted . | . . . . . . . . . . . . . . . Combat Hostiles . | . . . . . . . . . . . . . . . Parts Melted 3 | . . . . . 2 . . 1 . . . . . . Heat Transferred 1883 | . . . . . 555 248 555 175 . 300 50 . . . Parts Sabotaged . | . . . . . . . . . . . . . . . Parts Stolen . | . . . . . . . . . . . . . . . Parts Stripped . | . . . . . . . . . . . . . . . Power Chain Reactions 1 | . . . . . . 1 . . . . . . . . Missiles Intercepted . | . . . . . . . . . . . . . . . Alert | -11 -10 -10 -10 -9 -8 -7 -7 -7 -6 -5 -5 -4 -3 -2 ------- Run | Scr Mat Min Exi Min Mat Fac Gar Fac Fac Fac Ext Fac Res Res Peak Influence 687 | . 15 5 . 81 246 186 452 344 94 268 358 317 499 687 Average Influence 193 | . 11 5 . 23 94 114 232 248 77 117 176 167 215 500 Maximum Alert Level 2 | . . . . . 1 . 2 1 . 1 1 1 2 2 Low Security (%) 65 | . 100 100 . 100 98 100 48 12 100 91 74 64 56 . Level 1 23 | . . . . . 1 . 37 87 . 8 25 35 24 27 Level 2 11 | . . . . . . . 13 . . . . . 19 72 Level 3 . | . . . . . . . . . . . . . . . Level 4 . | . . . . . . . . . . . . . . . Level 5 . | . . . . . . . . . . . . . . . High Security . | . . . . . . . . . . . . . . . Max Security . | . . . . . . . . . . . . . . . Squads Dispatched 17 | . 1 . . 1 2 . . . . 3 . 3 . 7 Investigation 2 | . 1 . . 1 . . . . . . . . . . Extermination 7 | . . . . . . . . . . 2 . 2 . 3 Reinforcement 8 | . . . . . 2 . . . . 1 . 1 . 4 Assault . | . . . . . . . . . . . . . . . Garrison . | . . . . . . . . . . . . . . . Intercept . | . . . . . . . . . . . . . . . Construction Impeded . | . . . . . . . . . . . . . . . Haulers Reinforced 1 | . . . . . . . . . . . . . . 1 Stealth | -11 -10 -10 -10 -9 -8 -7 -7 -7 -6 -5 -5 -4 -3 -2 --------- Run | Scr Mat Min Exi Min Mat Fac Gar Fac Fac Fac Ext Fac Res Res Distress Signals 9 | . 1 . . . 1 . . . . . 1 1 . 5 Communications Jammed 15 | . . . . . . . . . . . . 15 . . Distress Signals 15 | . . . . . . . . . . . . 15 . . Times Spotted 183 | . 5 . . 3 17 6 23 2 . 13 16 30 5 63 Peak Tracking Total 11 | . 4 . . 3 3 3 5 1 . 1 3 6 1 11 Tactical Retreats 17 | . . . . . . . 6 . . . 2 4 . 5 Traps | -11 -10 -10 -10 -9 -8 -7 -7 -7 -6 -5 -5 -4 -3 -2 ------- Run | Scr Mat Min Exi Min Mat Fac Gar Fac Fac Fac Ext Fac Res Res Traps Triggered 7 | . . . . . . . 4 . . 1 1 . . 1 Indirectly . | . . . . . . . . . . . . . . . Trap Hack Attempts . | . . . . . . . . . . . . . . . Triggered . | . . . . . . . . . . . . . . . Disarmed . | . . . . . . . . . . . . . . . Reprogrammed 4 | . . . . . 4 . . . . . . . . . Reused . | . . . . . . . . . . . . . . . Traps Extracted . | . . . . . . . . . . . . . . . Installed . | . . . . . . . . . . . . . . . Triggered . | . . . . . . . . . . . . . . . Machines | -11 -10 -10 -10 -9 -8 -7 -7 -7 -6 -5 -5 -4 -3 -2 ---------- Run | Scr Mat Min Exi Min Mat Fac Gar Fac Fac Fac Ext Fac Res Res Machines Disabled 13 | . . . . . 1 . 1 . . 2 7 1 . 1 Max in Single Turn 2 | . . . . . 1 . 1 . . 1 2 1 . 1 Garrison Access 2 | . . . . . . . . . . 1 . 1 . . Garrison Relay 1 | . . . . . . . 1 . . . . . . . Energy Cycler 2 | . . . . . . . . . . . 2 . . . Machines Sabotaged . | . . . . . . . . . . . . . . . Garrisons Compromised . | . . . . . . . . . . . . . . . Overloaded Fab Kills . | . . . . . . . . . . . . . . . Fab Network Shutdowns 1 | . . . . . . . . . . . . . 1 . Hacking | -11 -10 -10 -10 -9 -8 -7 -7 -7 -6 -5 -5 -4 -3 -2 --------- Run | Scr Mat Min Exi Min Mat Fac Gar Fac Fac Fac Ext Fac Res Res Machines Accessed 39 | . 1 . 2 1 4 2 . 3 1 6 6 9 1 3 Terminals 26 | . 1 . . . 4 . . 3 . 3 6 6 . 3 Fabricators 3 | . . . . . . . . . . 1 . 1 1 . Repair Stations 3 | . . . . . . . . . 1 1 . 1 . . Recycling Units . | . . . . . . . . . . . . . . . Scanalyzers . | . . . . . . . . . . . . . . . Garrison Access 4 | . . . . . . 2 . . . 1 . 1 . . Total Hacks 114 | . 3 . 24 1 18 3 . 6 2 9 11 28 1 8 Successful 74 | . 2 . 24 1 15 1 . 3 1 5 4 15 1 2 Failed 39 | . . . . . 3 2 . 3 1 4 7 13 . 6 Catastrophic 5 | . . . . . . 1 . 1 . 1 1 . . 1 Database Lockouts 1 | . 1 . . . . . . . . . . . . . Manual 50 | . 2 . 1 . 15 . . 4 . 2 10 13 . 3 Terminals 74 | . 3 . . . 18 . . 6 . 5 11 23 . 8 Fabricators 3 | . . . . . . . . . . 1 . 1 1 . Repair Stations 7 | . . . . . . . . . 2 2 . 3 . . Recycling Units . | . . . . . . . . . . . . . . . Scanalyzers . | . . . . . . . . . . . . . . . Garrison Access 5 | . . . . . . 3 . . . 1 . 1 . . Terminal Hacks 49 | . 2 . 24 1 10 . . 2 . 1 1 7 . 1 Record 23 | . . . 23 . . . . . . . . . . . Prototype ID Bank 1 | . 1 . . . . . . . . . . . . . Open Door 1 | . . . . 1 . . . . . . . . . . Branch Access Points 2 | . . . . . 1 . . . . . . 1 . . Emergency Access Points 2 | . . . . . 1 . . . . . . 1 . . Terminal Index 1 | . . . . . . . . . . . . 1 . . Alert Level 1 | . . . . . 1 . . . . . . . . . Unreport Threat 3 | . . . . . 1 . . . . . . 1 . 1 Locate Traps 12 | . 1 . . . 4 . . 2 . 1 1 3 . . Reprogram Traps 1 | . . . . . 1 . . . . . . . . . Hauler Manifests 1 | . . . . . 1 . . . . . . . . . EX-Prototype ID Bank 1 | . . . 1 . . . . . . . . . . . Fabricator Hacks 1 | . . . . . . . . . . . . . 1 . Build 1 | . . . . . . . . . . . . . 1 . Repair Station Hacks 5 | . . . . . . . . . 1 2 . 2 . . Scan Component 3 | . . . . . . . . . 1 1 . 1 . . Repair 2 | . . . . . . . . . . 1 . 1 . . Recycling Unit Hacks . | . . . . . . . . . . . . . . . Scanalyzer . | . . . . . . . . . . . . . . . Garrison Access Hacks 3 | . . . . . . 1 . . . 1 . 1 . . Unlock Access 1 | . . . . . . 1 . . . . . . . . Seal Access 2 | . . . . . . . . . . 1 . 1 . . Unauthorized Hacks 43 | . . . . . 10 . . 4 . 3 7 15 . 4 Terminals 16 | . . . . . 5 . . 1 . 1 3 5 . 1 Assimilate 1 | . . . . . . . . . . . . 1 . . Botnet 14 | . . . . . 4 . . 1 . 1 3 4 . 1 Operators 1 | . . . . . 1 . . . . . . . . . Fabricators . | . . . . . . . . . . . . . . . Repair Stations . | . . . . . . . . . . . . . . . Recycling Units . | . . . . . . . . . . . . . . . Scanalyzers . | . . . . . . . . . . . . . . . Garrison Access . | . . . . . . . . . . . . . . . Data Cores Recovered 1 | . . . . . 1 . . . . . . . . . Used . | . . . . . . . . . . . . . . . Hacking Detections 30 | . . . . . 4 1 . 3 1 5 5 8 . 3 Full Trace Events . | . . . . . . . . . . . . . . . Feedback Events . | . . . . . . . . . . . . . . . Feedback Blocked . | . . . . . . . . . . . . . . . Robot Schematics Acquired . | . . . . . . . . . . . . . . . Robots Built . | . . . . . . . . . . . . . . . Matter . | . . . . . . . . . . . . . . . Time . | . . . . . . . . . . . . . . . Total Robot Build Rating . | . . . . . . . . . . . . . . . Part Schematics Acquired . | . . . . . . . . . . . . . . . Parts Built 1 | . . . . . . . . . . . . . 1 . Matter 384 | . . . . . . . . . . . . . 384 . Time 204 | . . . . . . . . . . . . . 204 . Total Part Build Rating 8 | . . . . . . . . . . . . . 8 . Parts Repaired 2 | . . . . . . . . . . 1 . 1 . . Time 60 | . . . . . . . . . . 38 . 22 . . Parts Recycled . | . . . . . . . . . . . . . . . Recycled Matter . | . . . . . . . . . . . . . . . Retrieved Matter . | . . . . . . . . . . . . . . . Retrieved Components . | . . . . . . . . . . . . . . . Parts Scanalyzed . | . . . . . . . . . . . . . . . Part Schematics Acquired . | . . . . . . . . . . . . . . . Parts Damaged . | . . . . . . . . . . . . . . . Bothacking | -11 -10 -10 -10 -9 -8 -7 -7 -7 -6 -5 -5 -4 -3 -2 ------------ Run | Scr Mat Min Exi Min Mat Fac Gar Fac Fac Fac Ext Fac Res Res Used RIF Installer 1 | . . . . . . . 1 . . . . . . . Robots Hacked 4 | . . . . . . . . . . 2 . . 1 1 Non-combat 3 | . . . . . . . . . . 2 . . 1 . Combat 1 | . . . . . . . . . . . . . . 1 Robot Hacks Applied 4 | . . . . . . . . . . 2 . . 1 1 no_distress 1 | . . . . . . . . . . 1 . . . . find_chute 1 | . . . . . . . . . . 1 . . . . map_route 1 | . . . . . . . . . . . . . 1 . formatsys_high 1 | . . . . . . . . . . . . . . 1 Relay Couplers Released 8 | . . . . . . . 4 . . 1 . 3 . . Machine Destruction 8 | . . . . . . . 4 . . 1 . 3 . . Attached 2 | . . . . . . . . . . 1 . . . 1 Robots Rewired 11 | . . . . . 1 . . . . . 10 . . . Allies Hacked . | . . . . . . . . . . . . . . . Hacks Repelled . | . . . . . . . . . . . . . . . Allies | -11 -10 -10 -10 -9 -8 -7 -7 -7 -6 -5 -5 -4 -3 -2 -------- Run | Scr Mat Min Exi Min Mat Fac Gar Fac Fac Fac Ext Fac Res Res Total Allies 18 | . . 3 . . 1 . . . . . 12 1 . 1 Largest Group 6 | . . 3 3 3 3 . . . . . 6 1 1 1 Highest-Rated Group 168 | . . 40 40 40 40 . . . . . 168 26 26 64 Highest-Rated Ally 64 | . . 16 16 16 16 . . . . . 31 26 26 64 Total Orders 1 | . . . . . . . . . . . 1 . . . EXPLORE 1 | . . . . . . . . . . . 1 . . . Ally Attacks 79 | . . . . . 25 . . . . . 46 4 . 4 Total Damage 1490 | . . . . . 301 . . . . . 927 89 . 173 Kills 9 | . . . . . 4 . . . . . 4 . . 1 Allies Corrupted . | . . . . . . . . . . . . . . . Allies Melted . | . . . . . . . . . . . . . . . Intel | -11 -10 -10 -10 -9 -8 -7 -7 -7 -6 -5 -5 -4 -3 -2 ------- Run | Scr Mat Min Exi Min Mat Fac Gar Fac Fac Fac Ext Fac Res Res Robot Analysis Total . | . . . . . . . . . . . . . . . Derelict Logs Recovered . | . . . . . . . . . . . . . . . Drone Launches 3 | . . . . . . . . . . 3 . . . . Drone Recoveries . | . . . . . . . . . . . . . . . Exploration | -11 -10 -10 -10 -9 -8 -7 -7 -7 -6 -5 -5 -4 -3 -2 ------------- Run | Scr Mat Min Exi Min Mat Fac Gar Fac Fac Fac Ext Fac Res Res Turns Passed 8881 | . 94 104 610 354 522 406 841 459 169 1516 1059 1260 531 956 Spaces Moved 6106 | 1 75 85 442 224 293 269 369 322 122 977 656 737 468 1066 Core . | . . . . . . . . . . . . . . . Treads . | . . . . . . . . . . . . . . . Legs 4201 | 1 75 85 442 224 293 269 369 322 122 977 656 366 . . Wheels . | . . . . . . . . . . . . . . . Hover 1905 | . . . . . . . . . . . . 371 468 1066 Flight . | . . . . . . . . . . . . . . . Fastest Speed 38 | 120 120 120 120 150 120 120 120 122 122 127 128 43 38 38 Average Speed 107 | 120 120 120 133 150 129 120 154 130 126 128 128 107 39 48 Slowest Speed 280 | 120 120 120 180 150 150 150 210 150 128 130 130 280 41 130 Overloaded Moves . | . . . . . . . . . . . . . . . Propulsion Burnouts . | . . . . . . . . . . . . . . . Robots Hopped . | . . . . . . . . . . . . . . . Cave-ins Triggered . | . . . . . . . . . . . . . . . Exploration Rate (%) 31 | 2 18 29 66 67 28 9 56 10 4 28 89 20 16 32 Regions Visited 14 Branch Regions 4 Pre-discovered Areas 1 | . . . 1 . . . . . . . . . . . Known Exits Taken 2 | . . . . . . 1 . . . . . . 1 . Unknown Exits Taken 11 | 1 1 1 1 1 1 . . 1 1 1 1 1 . . Scrap Searched 4 | . . . . 4 . . . . . . . . . . Spaces Dug 20 | . . . . . . . . . . . . 11 . 9 Terrain Destroyed 153 | . . . . 17 . 2 18 . . 24 24 56 . 12 Melee 20 | . . . . . . . . . . . . 11 . 9 Projectile 51 | . . . . . . . . . . 10 7 31 . 3 AOE 82 | . . . . 17 . 2 18 . . 14 17 14 . . Actions | -11 -10 -10 -10 -9 -8 -7 -7 -7 -6 -5 -5 -4 -3 -2 --------- Run | Scr Mat Min Exi Min Mat Fac Gar Fac Fac Fac Ext Fac Res Res Total 7764 | . 79 87 463 240 399 328 517 351 136 1151 778 1008 807 1420 Wait 860 | . . 3 1 . 60 34 27 5 6 74 18 97 306 229 Move 6093 | . 74 84 441 223 292 269 368 321 121 976 655 736 467 1066 Hop . | . . . . . . . . . . . . . . . Pick Up 54 | . 2 . 6 3 5 2 5 5 1 4 2 4 8 7 Fast Attach 104 | . 1 . 5 4 7 4 8 3 3 18 3 25 2 21 Attach 22 | . . . . . 2 2 4 . 1 . 1 3 3 6 Detach 5 | . . . . . 1 . 1 . . . . 1 . 2 Swap 82 | . . . 1 2 5 2 12 2 1 11 15 15 6 10 Drop 135 | . 2 . 9 6 10 5 10 9 3 24 9 18 10 20 Fire 253 | . . . . 2 16 10 56 6 . 41 62 44 5 11 Melee 121 | . . . . . . . 6 . . 2 . 65 . 48 Ram . | . . . . . . . . . . . . . . . Kick . | . . . . . . . . . . . . . . . Crush . | . . . . . . . . . . . . . . . Escape Stasis 20 | . . . . . . . 20 . . . . . . . Rewire 14 | . . . . . 1 . . . . . 13 . . . Trap . | . . . . . . . . . . . . . . . Miscellaneous 1 | . . . . . . . . . . 1 . . . . Route ------- -11/Scrapyard -10/Materials -10/Mines (discovered 2 exits: [*Mat] / *Exi) -10/Exiles -9/Mines -8/Materials -7/Factory -7/Garrison (discovered 2 exits: *Fac x2) -7/Factory -6/Factory -5/Factory -5/Extension (discovered 3 exits: *Fac x2 / [*Cet]) -4/Factory (discovered 3 exits: *Res / Upp x2) -3/Research -2/Research (discovered 2 exits: *Tes x2) History --------- Turn | Location | Event 1 | -11/Scrapyard | Discovered new exit (range 0) 1 | -11/Scrapyard | Entered Materials 57 | -10/Materials | Discovered new exit (range 11) 66 | -10/Materials | Central database locked down 95 | -10/Materials | Entered Mines 131 | -10/Mines | Assisted by bots powering up and referring to "LRC-V3" 175 | -10/Mines | Discovered new exit (range 5) 189 | -10/Mines | Deemed a non-threat by the Exiles lab entrance 190 | -10/Mines | Discovered new exit (range 5) 199 | -10/Mines | Entered Exiles 199 | -10/Exiles | Accompanied by 3 allies 229 | -10/Exiles | Met 8R-AWN 246 | -10/Exiles | Met EX-HEX 285 | -10/Exiles | Met EX-BIN 305 | -10/Exiles | Aligned with FarCom system 306 | -10/Exiles | Given EX-Vault access code 315 | -10/Exiles | Build established: Mutant 334 | -10/Exiles | Opened EX-Vault 345 | -10/Exiles | Found Trap Reconfigurator 362 | -10/Exiles | Found AWS/Autocannon 392 | -10/Exiles | Warned to stay clear of 0b10 Research branches 430 | -10/Exiles | Met EX-DEC 440 | -10/Exiles | Learned location of Zion (-6) 790 | -10/Exiles | Discovered new exit (range 14) 809 | -10/Exiles | Left Exiles lab with AWS/Autocannon 809 | -10/Exiles | Entered Mines 809 | -9/Mines | Accompanied by 3 allies 818 | -9/Mines | Met a Derelict shopkeep closing up shop 1147 | -9/Mines | Discovered new exit (range 9) 1156 | -9/Mines | Found a damaged Exp. Sensor Array with a note attached 1159 | -9/Mines | Found Prototype Device 1159 | -9/Mines | Identified Exp. Sensor Array 1163 | -9/Mines | Entered Materials 1163 | -8/Materials | Accompanied by 3 allies 1163 | -8/Materials | Evolved 4 slots: Propulsion x2, Utility x1, Weapon x1 1449 | -8/Materials | Build established: Skirmisher 1664 | -8/Materials | Discovered new exit (range 15) 1685 | -8/Materials | Entered Factory 1685 | -7/Factory | Evolved 2 slots: Propulsion x1, Utility x1 2091 | -7/Factory | Identified exit to Garrison 2091 | -7/Factory | Entered Garrison 2104 | -7/Garrison | Triggered checkpoint 2376 | -7/Garrison | Triggered checkpoint 2385 | -7/Garrison | Triggered checkpoint 2474 | -7/Garrison | Lost 8 parts (5n2u1w) 2562 | -7/Garrison | Discovered new exit (range 8) 2733 | -7/Garrison | Build established: Scavenger-Skirmisher 2733 | -7/Garrison | Discovered new exit (range 15) 2767 | -7/Garrison | Installed Relay Interface Framework 2804 | -7/Garrison | Triggered checkpoint 2877 | -7/Garrison | Garrison Relay disabled 2932 | -7/Garrison | Entered Factory 3249 | -7/Factory | Discovered new exit (range 4) 3391 | -7/Factory | Entered another Factory area 3391 | -6/Factory | Evolved 2 slots: Utility x2 3525 | -6/Factory | Discovered new exit (range 11) 3560 | -6/Factory | Entered another Factory area 3560 | -5/Factory | Evolved 2 slots: Power x1, Utility x1 4483 | -5/Factory | Build established: Scavenger-Gunner 4497 | -5/Factory | Repaired Hrd. Medium Armor Plating 4704 | -5/Factory | Found Prototype Launcher 4704 | -5/Factory | Identified Tesla Bomb Launcher 5053 | -5/Factory | Discovered new exit (range 17) 5076 | -5/Factory | Entered Extension 5076 | -5/Extension | Accompanied by 3 allies 5085 | -5/Extension | Disrupted transfer network 5139 | -5/Extension | Energy Cycler disabled 5139 | -5/Extension | Rescued a captive Derelict 5139 | -5/Extension | Rescued a captive Derelict 5139 | -5/Extension | Rescued a captive Derelict 5140 | -5/Extension | Rescued a captive Derelict 5140 | -5/Extension | Rescued a captive Derelict 5140 | -5/Extension | Rescued a captive Derelict 5142 | -5/Extension | Rescued a captive Derelict 5143 | -5/Extension | Rescued a captive Derelict 5144 | -5/Extension | Rescued a captive Derelict 5145 | -5/Extension | Rescued a captive Derelict 5147 | -5/Extension | Rescued a captive Derelict 5148 | -5/Extension | Rescued a captive Derelict 5152 | -5/Extension | Rescued a captive Derelict 5152 | -5/Extension | Rescued a captive Derelict 5524 | -5/Extension | Discovered new exit (range 30) 5538 | -5/Extension | Destroyed B-75 Beast 5554 | -5/Extension | Spotted B-75 Beast 5589 | -5/Extension | Destroyed B-75 Beast 5986 | -5/Extension | Discovered new exit (range 10) 5987 | -5/Extension | Discovered new exit (range 6) 6135 | -5/Extension | Entered Factory 6135 | -4/Factory | Accompanied by 1 ally 6135 | -4/Factory | Evolved 2 slots: Utility x2 6545 | -4/Factory | Repaired Imp. Medium Armor Plating 6630 | -4/Factory | Lost 3 parts (2n1w) 7030 | -4/Factory | Lost 5 parts (4n1w) 7078 | -4/Factory | Build established: Scavenger-Mutant 7115 | -4/Factory | System corruption reached 10% 7289 | -4/Factory | Lost 4 parts (3n1u) 7351 | -4/Factory | Identified exit to Upper Caves 7384 | -4/Factory | Discovered new exit (range 10) 7395 | -4/Factory | Entered Research 7395 | -3/Research | Accompanied by 1 ally 7395 | -3/Research | Evolved 2 slots: Propulsion x1, Utility x1 7693 | -3/Research | Local fabrication network quarantined 7712 | -3/Research | Fabricated Spectral Analyzer? 7809 | -3/Research | Found Fusion Bomb Launcher 7882 | -3/Research | Discovered new exit (range 12) 7884 | -3/Research | Build established: Scout 7925 | -3/Research | Identified exit to Research 7926 | -3/Research | Entered another Research area 7926 | -2/Research | Evolved 2 slots: Utility x1, Weapon x1 8274 | -2/Research | Destroyed 10 combat bots 8279 | -2/Research | Discovered new exit (range 19) 8281 | -2/Research | Lost 5 parts (1p3n1u) 8283 | -2/Research | Build established: Scavenger-Scout 8379 | -2/Research | Found Prototype Slashing Weapon 8379 | -2/Research | Identified Nanosword 8381 | -2/Research | Found Nanosword 8383 | -2/Research | Found Nanosword 8388 | -2/Research | Identified exit to Testing 8411 | -2/Research | Found Nanosword 8528 | -2/Research | Discovered exit to Testing (range 19) 8676 | -2/Research | Spotted B-90 Cyclops 8727 | -2/Research | Lost 3 parts (1p1n1u) 8729 | -2/Research | System corruption reached 10% 8808 | -2/Research | Core integrity fell below 50% 8843 | -2/Research | Lost 7 parts (1p4n2u) 8879 | -2/Research | Spotted B-90 Cyclops 8882 | -2/Research | Self-destructed Last Messages --------------- 08839_ Slug penetrates Door. 08841_ Penetrated by Slug. 08842_ Slug penetrates Wall. 08849_ System corrupted: Matter fused (-10). 08853_ Slug penetrates Wall. 08858_ Adv. Power Amplifier destroyed. 08858_ U-05 Engineer forms the Earth. 08859_ The unstable cave ceiling collapses. 08859_ H-88 Terminator crushed by falling debris. 08859_ U-05 Engineer builds a Wall. 08861_ Slug penetrates Wall. 08867_ Adv. Remote Datajack destroyed. 08867_ Slug penetrates Wall. 08872_ System corrupted: Component data lost. 08873_ Slug penetrates Wall. 08875_ Cld. Linear Gravjet destroyed. 08875_ Penetrated by Slug. 08876_ W-44 Eye sends out distress signal. 08880_ Slug penetrates Wall. 08881_ Penetrated by Slug. Map ----- +----------------------------------------------------+ | ?????????????????????????????????????????????????? | | ?????????????????????????????????????????????????? | | ?????????????????????????????????????????????????? | | ?????????????????????????????????????????????????? | | ?????????????????????????????????????????????????? | | ?????????????????????????????????????????????????? | | ?????????????????????????????????????????????????? | | ?????????????????????????????????????????????????? | | ?????????????????????????????????????????????????? | | ?????????????????????????????????????????????????? | | ?????????????????????????????????????????????????? | | ??????????????????????????????????##############?? | | ????????????Y?????????????????????# #?? | | ??????????????????????????????????# #?? | | ??????????????????????##########??# ### | | ??????????????????????# #??# "" | | ??????????????????????# #### "" | | ??????????????????????# ## # S" | | ??????????????????????# ## " """ | | ??????????????????????# #h## """ | | ??????????????????????# #??# """ | | ??????????????????????# #??# ### | | ??????? ????????????# #??# #?? | | ????????? k??????# #??# % #?? | | ??????????"" """ ###/###############"####"### | | ??????????"" """ k@ h h Y Y | | ??????????"" """ khhh | | ????????? h w % | | ????? k u R | | ???? ;########## ############+##/ | | ???? " " """ BB#?????????#?#?????# | | ???????"G" """ BB??????????????????# | | ??????? " """ ???????????????????# | | ??????? ????????????????????# | | ?????? ? ? ????????????????????# | | ???????????? ?????????????????????# | | ??????????? ###??????????????????????# | | ??????????? ?????????????????????????# | | ?????????? ??????????????????????????########## | | ?????????? ???????????????????????????????????? | | ????????? ???????????????????????w????????? ???? | | ???????? ?????????????????????????????????? ??? | | ????????? ?????????????????????????????????? ? ? | | ?????????????????????????????????? ?????? ? ? ? | | ???????????????????????#?#?? ? ? ??? ? | | ???????????????????????? #??+###?##+#### ? | | ?????????????????????? ?? "?"""? ? ? ? | | ?????????????????? ?? ???# """F?? ? | | ?????????????????? ?#? ? ? ???"" "?? | | ????????????????? ? ?? ??/?? ? ?? | +----------------------------------------------------+ Best States ------------- Heat Dissipation 68 Coolant Potential 80 Energy Generation 54 Energy Capacity 555 Matter Stores 300 Matter Capacity 300 Sight Range 24 Robot Scan Range 30 Terrain Scan Range 24 Terrain Scan Density 210 Jamming Range 12 Power Amplification 30 Additional Mass Support 9 Armor Coverage 600 Utility Shielding 66 Weapon Shielding 66 Weapon Cycling 20 Evasion (%) 57 Targeting Accuracy 8 Armor Integrity Analysis 50 Recoil Reduction 2 Kinecelleration 40 Defensive Hacking 10 Item Schematics ----------------- None Robot Schematics ------------------ None Fabricated ------------ Spectral Analyzer | x1 | -3/Research | Preloaded Alien Tech Used ----------------- None Achievements -------------- None Challenges ------------ None Game ------ Seed ParticleAntigravInjector Manual? 0 Play Time 01:56:43 Cumulative 218.7 hours Start 2019.12.03 @ 18:45:46 End 2019.12.03 @ 21:41:54 Sessions 7 Manual Loads 0 Difficulty Rogue Special Mode None Game No. 66 Rogue 18 Adventurer 32 Explorer 16 Win Type - Total 27 Types 14/3/4/2/2/1/1 Lore% 81 Gallery% 88 Achievement% 76 Wizard Run 0 Options --------- ASCII 0 Keyboard 0 Movement Numpad Keybinds 1 Fullscreen 0 Font 20/Terminus Map View 76x50 Tactical HUD 1 Map Filters NONE Filters NONE Steam 1 RUN: bd981080-b776-4cf8-844d-21354eba03e3